[Event "Late-Titled-Tuesday-Blitz-March-05-2024"]
[Site "Chess.com"]
[Date "2024.03.05"]
[Round "10"]
[White "rodp92"]
[Black "OverallStranger"]
[Result "0-1"]
[WhiteElo "2479"]
[BlackElo "2386"]
[TimeControl "180+1"]
[EndTime "15:53:41 PST"]
[Termination "OverallStranger won by checkmate"]

1. e4 {[%clk 0:03:00.2]} 1... c5 {[%clk 0:03:00.1]} 2. Nf3 {[%clk 0:03:00.1]}
2... Nc6 {[%clk 0:02:59.9]} 3. Bb5 {[%clk 0:02:59.2]} 3... g6 {[%clk 0:02:59.9]}
4. O-O {[%clk 0:02:57.7]} 4... Bg7 {[%clk 0:02:59.9]} 5. Re1 {[%clk 0:02:56]}
5... Nf6 {[%clk 0:02:59.9]} 6. Nc3 {[%clk 0:02:54.9]} 6... O-O {[%clk
0:02:57.4]} 7. h3 {[%clk 0:02:53.1]} 7... d6 {[%clk 0:02:55.8]} 8. a4 {[%clk
0:02:52]} 8... Bd7 {[%clk 0:02:51.5]} 9. Bf1 {[%clk 0:02:50.6]} 9... a6 {[%clk
0:02:45.7]} 10. d3 {[%clk 0:02:49.8]} 10... h6 {[%clk 0:02:43.5]} 11. Nd5 {[%clk
0:02:49.7]} 11... Nxd5 {[%clk 0:02:36.5]} 12. exd5 {[%clk 0:02:49.6]} 12... Nd4
{[%clk 0:02:36.8]} 13. Nd2 {[%clk 0:02:44.8]} 13... b5 {[%clk 0:02:31.6]} 14. c3
{[%clk 0:02:40.3]} 14... Nf5 {[%clk 0:02:30.3]} 15. Nf3 {[%clk 0:02:29.6]} 15...
h5 {[%clk 0:02:14.8]} 16. Bg5 {[%clk 0:02:28.4]} 16... Re8 {[%clk 0:02:11.5]}
17. Qd2 {[%clk 0:02:26]} 17... Kh7 {[%clk 0:02:10.5]} 18. axb5 {[%clk
0:02:05.9]} 18... axb5 {[%clk 0:02:11.4]} 19. Rxa8 {[%clk 0:02:03.9]} 19... Qxa8
{[%clk 0:02:12.3]} 20. g4 {[%clk 0:01:52.3]} 20... hxg4 {[%clk 0:02:12.5]} 21.
hxg4 {[%clk 0:01:52.7]} 21... Nh6 {[%clk 0:02:13.2]} 22. Bxe7 {[%clk 0:01:51]}
22... Qxd5 {[%clk 0:02:08.7]} 23. Ng5+ {[%clk 0:01:50.4]} 23... Kg8 {[%clk
0:02:05.3]} 24. Bg2 {[%clk 0:01:50.8]} 24... Qb3 {[%clk 0:01:57.2]} 25. f3
{[%clk 0:01:32.8]} 25... b4 {[%clk 0:01:52.7]} 26. d4 {[%clk 0:01:24.3]} 26...
bxc3 {[%clk 0:01:51.9]} 27. bxc3 {[%clk 0:01:25.2]} 27... cxd4 {[%clk
0:01:45.8]} 28. cxd4 {[%clk 0:01:24.3]} 28... Qd5 {[%clk 0:01:44.3]} 29. Re4
{[%clk 0:01:19.8]} 29... f5 {[%clk 0:01:25.1]} 30. Rf4 {[%clk 0:00:59.9]} 30...
Rxe7 {[%clk 0:01:22.7]} 31. Kh1 {[%clk 0:00:54.6]} 31... fxg4 {[%clk 0:01:16.6]}
32. fxg4 {[%clk 0:00:55]} 32... Qxg5 {[%clk 0:00:54.2]} 33. Rf8+ {[%clk
0:00:54.6]} 33... Bxf8 {[%clk 0:00:54.8]} 34. Qxg5 {[%clk 0:00:55]} 34... Re1+
{[%clk 0:00:55]} 35. Kh2 {[%clk 0:00:50]} 35... Nxg4+ {[%clk 0:00:54.9]} 36. Kg3
{[%clk 0:00:48]} 36... Re3+ {[%clk 0:00:54.7]} 37. Bf3 {[%clk 0:00:48.1]} 37...
Kg7 {[%clk 0:00:35.8]} 38. Kg2 {[%clk 0:00:34.2]} 38... Rxf3 {[%clk 0:00:27]}
39. Kxf3 {[%clk 0:00:27.2]} 39... Nf6 {[%clk 0:00:26.1]} 40. Ke2 {[%clk
0:00:24.1]} 40... Kf7 {[%clk 0:00:25.7]} 41. Qa5 {[%clk 0:00:22.6]} 41... d5
{[%clk 0:00:20]} 42. Qc7 {[%clk 0:00:21.8]} 42... g5 {[%clk 0:00:19.8]} 43. Qe5
{[%clk 0:00:20.4]} 43... Kg6 {[%clk 0:00:19.3]} 44. Kd1 {[%clk 0:00:16.9]} 44...
Bf5 {[%clk 0:00:14.4]} 45. Ke1 {[%clk 0:00:14.9]} 45... Bb4+ {[%clk 0:00:14]}
46. Kf1 {[%clk 0:00:14.2]} 46... Be4 {[%clk 0:00:12.2]} 47. Qc7 {[%clk
0:00:13.1]} 47... Bd2 {[%clk 0:00:11.6]} 48. Qd8 {[%clk 0:00:12.6]} 48... Bf4
{[%clk 0:00:11.7]} 49. Qf8 {[%clk 0:00:12.1]} 49... Ng4 {[%clk 0:00:12.1]} 50.
Qe8+ {[%clk 0:00:11.2]} 50... Kf6 {[%clk 0:00:12.4]} 51. Qd8+ {[%clk 0:00:11.3]}
51... Kf7 {[%clk 0:00:11]} 52. Qd7+ {[%clk 0:00:11.7]} 52... Kf6 {[%clk
0:00:11.6]} 53. Qxg4 {[%clk 0:00:12.3]} 53... Bf5 {[%clk 0:00:12.1]} 54. Qh5
{[%clk 0:00:11.8]} 54... Be4 {[%clk 0:00:12.6]} 55. Ke1 {[%clk 0:00:11.4]} 55...
Kf5 {[%clk 0:00:13.5]} 56. Kd1 {[%clk 0:00:11.3]} 56... Be3 {[%clk 0:00:12.1]}
57. Qh7+ {[%clk 0:00:10.2]} 57... Kf4 {[%clk 0:00:12.2]} 58. Qf7+ {[%clk
0:00:10.1]} 58... Kg3 {[%clk 0:00:11.6]} 59. Qf6 {[%clk 0:00:10.3]} 59... Bf4
{[%clk 0:00:11.1]} 60. Ke2 {[%clk 0:00:10.3]} 60... Kg4 {[%clk 0:00:11.3]} 61.
Qe6+ {[%clk 0:00:10.3]} 61... Kh5 {[%clk 0:00:11.3]} 62. Qf7+ {[%clk 0:00:10.2]}
62... Kh6 {[%clk 0:00:11.4]} 63. Qf6+ {[%clk 0:00:09.6]} 63... Kh5 {[%clk
0:00:11.6]} 64. Kf2 {[%clk 0:00:09.4]} 64... Kg4 {[%clk 0:00:11.8]} 65. Qe6+
{[%clk 0:00:09.5]} 65... Kh5 {[%clk 0:00:12.4]} 66. Qh3+ {[%clk 0:00:09.7]}
66... Kg6 {[%clk 0:00:13]} 67. Qg4 {[%clk 0:00:09.3]} 67... Kf6 {[%clk
0:00:13.4]} 68. Qh5 {[%clk 0:00:09.2]} 68... Bg6 {[%clk 0:00:12.2]} 69. Qh8+
{[%clk 0:00:08.7]} 69... Kf7 {[%clk 0:00:11.8]} 70. Qd8 {[%clk 0:00:08.3]} 70...
Be4 {[%clk 0:00:11.8]} 71. Qd7+ {[%clk 0:00:07.9]} 71... Kf6 {[%clk 0:00:12.5]}
72. Qc6+ {[%clk 0:00:07.5]} 72... Ke7 {[%clk 0:00:13.4]} 73. Ke2 {[%clk
0:00:05.1]} 73... Kd8 {[%clk 0:00:11.5]} 74. Qb7 {[%clk 0:00:05]} 74... Bh1
{[%clk 0:00:06.1]} 75. Qg7 {[%clk 0:00:03.9]} 75... Be4 {[%clk 0:00:06.3]} 76.
Kf1 {[%clk 0:00:03.9]} 76... Ke8 {[%clk 0:00:06.3]} 77. Kf2 {[%clk 0:00:04]}
77... Bd6 {[%clk 0:00:06.4]} 78. Ke2 {[%clk 0:00:02.2]} 78... Bf8 {[%clk
0:00:06.6]} 79. Qxg5 {[%clk 0:00:02]} 79... Be7 {[%clk 0:00:07.3]} 80. Qh5+
{[%clk 0:00:02.6]} 80... Kd7 {[%clk 0:00:08.2]} 81. Qh8 {[%clk 0:00:03.2]} 81...
Kd6 {[%clk 0:00:08.8]} 82. Qe5+ {[%clk 0:00:03.5]} 82... Kd7 {[%clk 0:00:09.1]}
83. Kd2 {[%clk 0:00:04.3]} 83... Bd6 {[%clk 0:00:09.7]} 84. Qf6 {[%clk
0:00:04.3]} 84... Be7 {[%clk 0:00:10.1]} 85. Qg7 {[%clk 0:00:04.3]} 85... Ke6
{[%clk 0:00:10.5]} 86. Kc3 {[%clk 0:00:04.7]} 86... Bf6 {[%clk 0:00:10.9]} 87.
Qh6 {[%clk 0:00:04.1]} 87... Kf5 {[%clk 0:00:11.3]} 88. Qh3+ {[%clk 0:00:04.3]}
88... Kf4 {[%clk 0:00:11.7]} 89. Qh2+ {[%clk 0:00:04.2]} 89... Ke3 {[%clk
0:00:10.4]} 90. Qg3+ {[%clk 0:00:03.8]} 90... Bf3 {[%clk 0:00:09.4]} 91. Qh4
{[%clk 0:00:03.2]} 91... Bxh4 {[%clk 0:00:09.4]} 92. Kb4 {[%clk 0:00:03]} 92...
Bf6 {[%clk 0:00:10.2]} 93. Kc5 {[%clk 0:00:03.7]} 93... Bxd4+ {[%clk 0:00:11.1]}
94. Kb4 {[%clk 0:00:03.8]} 94... Ke4 {[%clk 0:00:12]} 95. Kb3 {[%clk 0:00:04.5]}
95... Be3 {[%clk 0:00:12.9]} 96. Kc2 {[%clk 0:00:05.4]} 96... d4 {[%clk
0:00:13.8]} 97. Kb1 {[%clk 0:00:05.2]} 97... d3 {[%clk 0:00:14.7]} 98. Kb2
{[%clk 0:00:05.6]} 98... d2 {[%clk 0:00:15.4]} 99. Kc2 {[%clk 0:00:06]} 99...
d1=Q+ {[%clk 0:00:15.7]} 100. Kb2 {[%clk 0:00:05.8]} 100... Bd4+ {[%clk
0:00:16.4]} 101. Ka2 {[%clk 0:00:06.7]} 101... Qc2+ {[%clk 0:00:16.6]} 102. Ka3
{[%clk 0:00:07.1]} 102... Qb2+ {[%clk 0:00:17.1]} 103. Ka4 {[%clk 0:00:07.4]}
103... Ke3 {[%clk 0:00:17.6]} 104. Ka5 {[%clk 0:00:07.9]} 104... Bb7 {[%clk
0:00:17.6]} 105. Ka4 {[%clk 0:00:08.2]} 105... Bc6+ {[%clk 0:00:18.5]} 106. Ka5
{[%clk 0:00:09]} 106... Qb5# {[%clk 0:00:19.1]} 0-1

[Event "Late-Titled-Tuesday-Blitz-March-05-2024"]
[Site "Chess.com"]
[Date "2024.03.05"]
[Round "10"]
[White "jinxy2009"]
[Black "NCchamp"]
[Result "1-0"]
[WhiteElo "2211"]
[BlackElo "2318"]
[TimeControl "180+1"]
[EndTime "15:53:47 PST"]
[Termination "jinxy2009 won by checkmate"]

1. e4 {[%clk 0:03:00.9]} 1... c6 {[%clk 0:02:57.9]} 2. d4 {[%clk 0:03:00.5]}
2... d5 {[%clk 0:02:58.8]} 3. e5 {[%clk 0:03:01.1]} 3... Bf5 {[%clk 0:02:55.3]}
4. h4 {[%clk 0:03:01.1]} 4... h5 {[%clk 0:02:53.9]} 5. Bd3 {[%clk 0:03:00.9]}
5... Bxd3 {[%clk 0:02:53.8]} 6. Qxd3 {[%clk 0:03:01.8]} 6... Qa5+ {[%clk
0:02:53.5]} 7. Nd2 {[%clk 0:03:00.8]} 7... e6 {[%clk 0:02:52.3]} 8. Nf3 {[%clk
0:02:59.1]} 8... Nd7 {[%clk 0:02:52.3]} 9. c4 {[%clk 0:02:57.9]} 9... Qa6 {[%clk
0:02:49.7]} 10. O-O {[%clk 0:02:56.5]} 10... Bb4 {[%clk 0:02:49.4]} 11. a3
{[%clk 0:02:42.3]} 11... Ne7 {[%clk 0:02:48.1]} 12. Rd1 {[%clk 0:02:17.9]} 12...
Bxd2 {[%clk 0:02:33.4]} 13. Nxd2 {[%clk 0:02:16.1]} 13... Nb6 {[%clk 0:02:33]}
14. b3 {[%clk 0:02:05.7]} 14... Rd8 {[%clk 0:02:30.9]} 15. a4 {[%clk 0:02:02.2]}
15... dxc4 {[%clk 0:02:30.6]} 16. bxc4 {[%clk 0:02:03.1]} 16... Nf5 {[%clk
0:02:30.8]} 17. Bb2 {[%clk 0:01:50.1]} 17... c5 {[%clk 0:02:25]} 18. d5 {[%clk
0:01:45.2]} 18... Nxd5 {[%clk 0:02:25]} 19. Ne4 {[%clk 0:01:37.9]} 19... Qb6
{[%clk 0:01:57.5]} 20. cxd5 {[%clk 0:01:30]} 20... Qxb2 {[%clk 0:01:56.8]} 21.
d6 {[%clk 0:01:15.5]} 21... O-O {[%clk 0:01:47.3]} 22. Qc3 {[%clk 0:01:07]}
22... Qxc3 {[%clk 0:01:19.4]} 23. Nxc3 {[%clk 0:01:07.9]} 23... f6 {[%clk
0:01:15.4]} 24. Ne4 {[%clk 0:01:06.3]} 24... fxe5 {[%clk 0:01:13.5]} 25. a5
{[%clk 0:00:32.1]} 25... b6 {[%clk 0:00:59.2]} 26. axb6 {[%clk 0:00:31.8]} 26...
axb6 {[%clk 0:01:00.1]} 27. Ra6 {[%clk 0:00:26.1]} 27... Rb8 {[%clk 0:00:51]}
28. Ng5 {[%clk 0:00:25.7]} 28... Rfd8 {[%clk 0:00:41.9]} 29. d7 {[%clk
0:00:19.2]} 29... Rb7 {[%clk 0:00:40.2]} 30. Nxe6 {[%clk 0:00:19.3]} 30... Rdxd7
{[%clk 0:00:40.8]} 31. Rxd7 {[%clk 0:00:19.4]} 31... Rxd7 {[%clk 0:00:40.5]} 32.
Rxb6 {[%clk 0:00:19.3]} 32... Nxh4 {[%clk 0:00:32.8]} 33. g3 {[%clk 0:00:17.6]}
33... Rd1+ {[%clk 0:00:26.8]} 34. Kh2 {[%clk 0:00:17.2]} 34... Nf3+ {[%clk
0:00:26.8]} 35. Kg2 {[%clk 0:00:16.8]} 35... Nd4 {[%clk 0:00:24.7]} 36. Rb8+
{[%clk 0:00:15.3]} 36... Kf7 {[%clk 0:00:24.6]} 37. Ng5+ {[%clk 0:00:15.7]}
37... Kg6 {[%clk 0:00:25]} 38. Ne4 {[%clk 0:00:15.1]} 38... c4 {[%clk
0:00:21.7]} 39. Rc8 {[%clk 0:00:13.6]} 39... Rc1 {[%clk 0:00:18.8]} 40. Rc5
{[%clk 0:00:09.3]} 40... Kf5 {[%clk 0:00:08.5]} 41. Nd6+ {[%clk 0:00:08]} 41...
Ke6 {[%clk 0:00:09]} 42. Nxc4 {[%clk 0:00:07.9]} 42... Nb3 {[%clk 0:00:08.5]}
43. Rxe5+ {[%clk 0:00:07.6]} 43... Kf6 {[%clk 0:00:08.3]} 44. Re3 {[%clk
0:00:04.7]} 44... Nc5 {[%clk 0:00:08.8]} 45. Nd2 {[%clk 0:00:04.2]} 45... Ne6
{[%clk 0:00:06.9]} 46. Ne4+ {[%clk 0:00:03.9]} 46... Kg6 {[%clk 0:00:07.1]} 47.
Nd2 {[%clk 0:00:02.2]} 47... Ng5 {[%clk 0:00:07.5]} 48. Nf3 {[%clk 0:00:01.8]}
48... Nh7 {[%clk 0:00:05.7]} 49. Nh4+ {[%clk 0:00:02.1]} 49... Kf7 {[%clk
0:00:05.3]} 50. Rf3+ {[%clk 0:00:02.5]} 50... Nf6 {[%clk 0:00:05.4]} 51. Nf5
{[%clk 0:00:02.2]} 51... Kg6 {[%clk 0:00:05.7]} 52. Nh4+ {[%clk 0:00:02.5]}
52... Kf7 {[%clk 0:00:05.3]} 53. Ra3 {[%clk 0:00:02.8]} 53... Rc7 {[%clk
0:00:03.8]} 54. Ra6 {[%clk 0:00:02.9]} 54... Rb7 {[%clk 0:00:03.6]} 55. Nf3
{[%clk 0:00:03.2]} 55... Rb2 {[%clk 0:00:03.2]} 56. Ne5+ {[%clk 0:00:03.6]}
56... Kg8 {[%clk 0:00:02.9]} 57. Ra8+ {[%clk 0:00:03.5]} 57... Kh7 {[%clk
0:00:03.2]} 58. Nf3 {[%clk 0:00:03.3]} 58... Rb5 {[%clk 0:00:03]} 59. Nd2 {[%clk
0:00:02]} 59... Kg6 {[%clk 0:00:03.6]} 60. Nf3 {[%clk 0:00:02.5]} 60... Rb3
{[%clk 0:00:03.8]} 61. Nh4+ {[%clk 0:00:03.4]} 61... Kf7 {[%clk 0:00:03.9]} 62.
Ra7+ {[%clk 0:00:03.8]} 62... Kf8 {[%clk 0:00:04.2]} 63. Ra8+ {[%clk 0:00:04.4]}
63... Kf7 {[%clk 0:00:04.3]} 64. Ra7+ {[%clk 0:00:04.1]} 64... Kf8 {[%clk
0:00:04.8]} 65. Ra8+ {[%clk 0:00:04.7]} 65... Ke7 {[%clk 0:00:05.7]} 66. Ra7+
{[%clk 0:00:05]} 66... Nd7 {[%clk 0:00:06.4]} 67. Ra2 {[%clk 0:00:04.7]} 67...
Rb5 {[%clk 0:00:06]} 68. Re2+ {[%clk 0:00:05.3]} 68... Kf7 {[%clk 0:00:05.6]}
69. Nf3 {[%clk 0:00:05]} 69... Nf6 {[%clk 0:00:06]} 70. Ne5+ {[%clk 0:00:04.8]}
70... Kg8 {[%clk 0:00:06.3]} 71. Nf3 {[%clk 0:00:05.2]} 71... Rb3 {[%clk
0:00:06.3]} 72. Nh4 {[%clk 0:00:04.8]} 72... Kf7 {[%clk 0:00:06.2]} 73. Nf3
{[%clk 0:00:04.9]} 73... Kg6 {[%clk 0:00:05.9]} 74. Ne5+ {[%clk 0:00:05.2]}
74... Kh6 {[%clk 0:00:06]} 75. Nf3 {[%clk 0:00:05.6]} 75... g5 {[%clk
0:00:05.8]} 76. Ne5 {[%clk 0:00:05.5]} 76... Rb2 {[%clk 0:00:04.4]} 77. Rxb2
{[%clk 0:00:05]} 77... Kg7 {[%clk 0:00:03.6]} 78. Rb7+ {[%clk 0:00:05]} 78...
Kg8 {[%clk 0:00:04.5]} 79. f4 {[%clk 0:00:03.9]} 79... g4 {[%clk 0:00:04.3]} 80.
Ng6 {[%clk 0:00:03]} 80... Ne4 {[%clk 0:00:05.2]} 81. Ne5 {[%clk 0:00:02.6]}
81... Nf6 {[%clk 0:00:05.5]} 82. Rf7 {[%clk 0:00:02.5]} 82... Nd5 {[%clk
0:00:06]} 83. Ra7 {[%clk 0:00:03.4]} 83... Nf6 {[%clk 0:00:06.5]} 84. Kf2 {[%clk
0:00:03.7]} 84... Ne4+ {[%clk 0:00:06.9]} 85. Kg2 {[%clk 0:00:03.7]} 85... Nf6
{[%clk 0:00:07.3]} 86. Nd3 {[%clk 0:00:03.9]} 86... Ne4 {[%clk 0:00:07.4]} 87.
f5 {[%clk 0:00:03.2]} 87... Nf6 {[%clk 0:00:07.5]} 88. Nf4 {[%clk 0:00:03.5]}
88... Kf8 {[%clk 0:00:06.8]} 89. Kf2 {[%clk 0:00:04]} 89... Ke8 {[%clk
0:00:07.2]} 90. Ke3 {[%clk 0:00:04.5]} 90... Nd5+ {[%clk 0:00:06.6]} 91. Nxd5
{[%clk 0:00:03.9]} 91... Kf8 {[%clk 0:00:07]} 92. Nf4 {[%clk 0:00:04.8]} 92...
h4 {[%clk 0:00:07.4]} 93. gxh4 {[%clk 0:00:05]} 93... g3 {[%clk 0:00:08.3]} 94.
Kf3 {[%clk 0:00:04.9]} 94... g2 {[%clk 0:00:09.2]} 95. Kxg2 {[%clk 0:00:05.4]}
95... Kg8 {[%clk 0:00:09.5]} 96. Kg3 {[%clk 0:00:06]} 96... Kf8 {[%clk
0:00:10.4]} 97. Kg4 {[%clk 0:00:06.9]} 97... Kg8 {[%clk 0:00:09.7]} 98. Kg5
{[%clk 0:00:07.8]} 98... Kh8 {[%clk 0:00:10.6]} 99. Kg6 {[%clk 0:00:08.1]} 99...
Kg8 {[%clk 0:00:11.3]} 100. Ra8# {[%clk 0:00:08.8]} 1-0

[Event "Late-Titled-Tuesday-Blitz-March-05-2024"]
[Site "Chess.com"]
[Date "2024.03.05"]
[Round "10"]
[White "NateSolon"]
[Black "SnekkerAndersen"]
[Result "1-0"]
[WhiteElo "2697"]
[BlackElo "2704"]
[TimeControl "180+1"]
[EndTime "15:54:05 PST"]
[Termination "NateSolon won by resignation"]

1. d4 {[%clk 0:03:00.9]} 1... a6 {[%clk 0:02:59.8]} 2. e4 {[%clk 0:03:00.6]}
2... h6 {[%clk 0:03:00.3]} 3. Nf3 {[%clk 0:03:00.1]} 3... d6 {[%clk 0:03:01.2]}
4. Bc4 {[%clk 0:02:59]} 4... e6 {[%clk 0:03:02.1]} 5. O-O {[%clk 0:02:58.4]}
5... Nc6 {[%clk 0:03:02.3]} 6. d5 {[%clk 0:02:53.6]} 6... Ne5 {[%clk 0:02:11.5]}
7. Nxe5 {[%clk 0:02:51.9]} 7... dxe5 {[%clk 0:02:10.9]} 8. dxe6 {[%clk
0:02:49.8]} 8... Bxe6 {[%clk 0:02:05.6]} 9. Bxe6 {[%clk 0:02:49.4]} 9... fxe6
{[%clk 0:02:05.9]} 10. Qh5+ {[%clk 0:02:48.5]} 10... Ke7 {[%clk 0:02:05.7]} 11.
Rd1 {[%clk 0:02:42.1]} 11... Qe8 {[%clk 0:01:56.6]} 12. Qxe5 {[%clk 0:02:39.3]}
12... Qc6 {[%clk 0:01:56.5]} 13. Nc3 {[%clk 0:02:36.5]} 13... Kf7 {[%clk
0:01:55]} 14. Bf4 {[%clk 0:02:28.5]} 14... Bd6 {[%clk 0:01:51.8]} 15. Qh5+
{[%clk 0:02:28.5]} 15... g6 {[%clk 0:01:51.9]} 16. Qf3 {[%clk 0:02:28.6]} 16...
Kg7 {[%clk 0:01:45.3]} 17. Bxd6 {[%clk 0:02:17.8]} 17... cxd6 {[%clk 0:01:44.7]}
18. Qd3 {[%clk 0:02:17.7]} 18... Rd8 {[%clk 0:01:41]} 19. e5 {[%clk 0:02:09.5]}
19... d5 {[%clk 0:01:36.2]} 20. Ne2 {[%clk 0:02:03.2]} 20... Ne7 {[%clk
0:01:33.3]} 21. Nd4 {[%clk 0:02:03.3]} 21... Qd7 {[%clk 0:01:31.1]} 22. Qh3
{[%clk 0:01:57.8]} 22... Nf5 {[%clk 0:01:27.9]} 23. Nxf5+ {[%clk 0:01:57.2]}
23... gxf5 {[%clk 0:01:28.8]} 24. Rd3 {[%clk 0:01:48.8]} 24... Kh7 {[%clk
0:01:28.5]} 25. Rad1 {[%clk 0:01:38.7]} 25... Qc7 {[%clk 0:01:24.3]} 26. Qh5
{[%clk 0:01:30.5]} 26... Rhg8 {[%clk 0:01:18]} 27. Rg3 {[%clk 0:01:13.7]} 27...
Rxg3 {[%clk 0:01:17.1]} 28. hxg3 {[%clk 0:01:14.6]} 28... Rg8 {[%clk 0:01:17.2]}
29. Qe2 {[%clk 0:01:02.3]} 29... Qb6 {[%clk 0:01:15.3]} 30. c3 {[%clk
0:00:53.8]} 30... Rxg3 {[%clk 0:01:13.9]} 31. Rd4 {[%clk 0:00:53.7]} 31... Rg7
{[%clk 0:01:07.7]} 32. Rh4 {[%clk 0:00:50.3]} 32... Qd8 {[%clk 0:01:01.5]} 33.
Rb4 {[%clk 0:00:47.7]} 33... b5 {[%clk 0:01:01]} 34. Qe3 {[%clk 0:00:46.4]}
34... Qe8 {[%clk 0:00:49.1]} 35. g3 {[%clk 0:00:43.4]} 35... a5 {[%clk
0:00:45.9]} 36. Rh4 {[%clk 0:00:42]} 36... Qg6 {[%clk 0:00:45.5]} 37. Kg2 {[%clk
0:00:37.8]} 37... h5 {[%clk 0:00:33.8]} 38. Qe2 {[%clk 0:00:34.8]} 38... Kh6
{[%clk 0:00:33.4]} 39. Qxb5 {[%clk 0:00:32.6]} 39... Qg5 {[%clk 0:00:32.5]} 40.
Qa4 {[%clk 0:00:31]} 40... Qd2 {[%clk 0:00:30.2]} 41. Qf4+ {[%clk 0:00:29.8]}
41... Qxf4 {[%clk 0:00:30.3]} 42. Rxf4 {[%clk 0:00:30.7]} 42... Rb7 {[%clk
0:00:30.4]} 43. b3 {[%clk 0:00:30.5]} 43... Rc7 {[%clk 0:00:27.1]} 44. c4 {[%clk
0:00:30.9]} 44... Rc5 {[%clk 0:00:25.9]} 45. cxd5 {[%clk 0:00:25.6]} 45... Rxd5
{[%clk 0:00:25.7]} 46. Rf3 {[%clk 0:00:22.7]} 46... Rxe5 {[%clk 0:00:25.9]} 47.
Re3 {[%clk 0:00:23.2]} 47... Rc5 {[%clk 0:00:12.4]} 48. Rxe6+ {[%clk 0:00:23.2]}
48... Kg7 {[%clk 0:00:12]} 49. Ra6 {[%clk 0:00:23.4]} 49... Kf7 {[%clk
0:00:10.3]} 50. Kf3 {[%clk 0:00:23.6]} 50... Ke7 {[%clk 0:00:10.1]} 51. Kf4
{[%clk 0:00:24]} 51... Rc2 {[%clk 0:00:09.1]} 52. Rxa5 {[%clk 0:00:23.4]} 52...
Rxf2+ {[%clk 0:00:09.2]} 53. Kg5 {[%clk 0:00:24]} 53... Rf3 {[%clk 0:00:09.3]}
54. Rxf5 {[%clk 0:00:17.9]} 54... Rxg3+ {[%clk 0:00:08.4]} 55. Kxh5 {[%clk
0:00:18.5]} 55... Rg2 {[%clk 0:00:09.1]} 56. Ra5 {[%clk 0:00:18.4]} 56... Kd6
{[%clk 0:00:09.5]} 57. Kh4 {[%clk 0:00:18.6]} 57... Kc6 {[%clk 0:00:09.2]} 58.
Kh3 {[%clk 0:00:19]} 58... Rg8 {[%clk 0:00:08.3]} 59. Ra4 {[%clk 0:00:18.9]}
59... Kb5 {[%clk 0:00:07.8]} 60. Rg4 {[%clk 0:00:18.4]} 60... Ra8 {[%clk
0:00:08.4]} 61. a4+ {[%clk 0:00:17.2]} 61... Ka5 {[%clk 0:00:08.4]} 62. Kg2
{[%clk 0:00:18.1]} 62... Rb8 {[%clk 0:00:06.9]} 63. Rg3 {[%clk 0:00:18.5]} 63...
Kb4 {[%clk 0:00:03.5]} 64. Kf2 {[%clk 0:00:18.7]} 64... Re8 {[%clk 0:00:03.9]}
65. Re3 {[%clk 0:00:18.2]} 65... Rh8 {[%clk 0:00:03.7]} 66. Ke2 {[%clk
0:00:17.7]} 66... Rd8 {[%clk 0:00:04.2]} 67. Rd3 {[%clk 0:00:17.6]} 67... Re8+
{[%clk 0:00:04.6]} 68. Kd2 {[%clk 0:00:18]} 68... Re4 {[%clk 0:00:04.3]} 69. Kc2
{[%clk 0:00:17.4]} 69... Re2+ {[%clk 0:00:04.6]} 70. Rd2 {[%clk 0:00:17.3]}
70... Re4 {[%clk 0:00:05.3]} 71. Kb2 {[%clk 0:00:17.3]} 71... Rh4 {[%clk
0:00:05.3]} 72. Rc2 {[%clk 0:00:17.6]} 72... Rg4 {[%clk 0:00:05.3]} 73. Rf2
{[%clk 0:00:17.4]} 73... Rh4 {[%clk 0:00:05.5]} 74. Rf3 {[%clk 0:00:17.1]} 74...
Rh2+ {[%clk 0:00:05.5]} 75. Kc1 {[%clk 0:00:17.5]} 75... Rh4 {[%clk 0:00:05.2]}
76. Kd2 {[%clk 0:00:17.9]} 76... Rh2+ {[%clk 0:00:05.1]} 77. Ke1 {[%clk
0:00:18]} 77... Rh4 {[%clk 0:00:04]} 78. Rd3 {[%clk 0:00:18.1]} 78... Re4+
{[%clk 0:00:03.7]} 79. Kd2 {[%clk 0:00:18.4]} 79... Rh4 {[%clk 0:00:03.7]} 80.
Ke3 {[%clk 0:00:17.9]} 80... Rh3+ {[%clk 0:00:04]} 81. Ke4 {[%clk 0:00:18.4]}
81... Rh4+ {[%clk 0:00:04.6]} 82. Kd5 {[%clk 0:00:18.4]} 82... Rh5+ {[%clk
0:00:05.1]} 83. Kc6 {[%clk 0:00:18.8]} 83... Rh6+ {[%clk 0:00:05]} 84. Rd6
{[%clk 0:00:17.5]} 84... Rh5 {[%clk 0:00:05.3]} 85. Rd3 {[%clk 0:00:16.2]} 85...
Rh6+ {[%clk 0:00:05.1]} 86. Kd5 {[%clk 0:00:16.7]} 86... Rh5+ {[%clk 0:00:05.7]}
87. Ke4 {[%clk 0:00:17.1]} 87... Rh4+ {[%clk 0:00:06.3]} 88. Ke3 {[%clk
0:00:17.4]} 88... Rh3+ {[%clk 0:00:06.1]} 89. Kd2 {[%clk 0:00:17.5]} 89... Rh2+
{[%clk 0:00:06.8]} 90. Ke1 {[%clk 0:00:17.8]} 90... Rh1+ {[%clk 0:00:07.4]} 91.
Kf2 {[%clk 0:00:18.3]} 91... Rh2+ {[%clk 0:00:07.9]} 92. Kg3 {[%clk 0:00:18.4]}
92... Rh8 {[%clk 0:00:08]} 93. Rf3 {[%clk 0:00:18.1]} 93... Rg8+ {[%clk
0:00:07.5]} 94. Kf2 {[%clk 0:00:18.5]} 94... Rg4 {[%clk 0:00:07.4]} 95. Ke2
{[%clk 0:00:18.2]} 95... Rh4 {[%clk 0:00:07.8]} 96. Kd2 {[%clk 0:00:18]} 96...
Rh2+ {[%clk 0:00:08]} 97. Kc1 {[%clk 0:00:18.1]} 97... Rh1+ {[%clk 0:00:08]} 98.
Kc2 {[%clk 0:00:18.6]} 98... Rh2+ {[%clk 0:00:08.6]} 99. Kd1 {[%clk 0:00:17.8]}
99... Rh1+ {[%clk 0:00:09.1]} 100. Ke2 {[%clk 0:00:18.4]} 100... Rh2+ {[%clk
0:00:08.9]} 101. Rf2 {[%clk 0:00:17.4]} 101... Rh4 {[%clk 0:00:07.2]} 102. Rf3
{[%clk 0:00:17]} 102... Rg4 {[%clk 0:00:06.4]} 103. Kf2 {[%clk 0:00:16.6]}
103... Rh4 {[%clk 0:00:06.2]} 104. Rd3 {[%clk 0:00:16.7]} 104... Rg4 {[%clk
0:00:05]} 105. Kf3 {[%clk 0:00:15.8]} 105... Rh4 {[%clk 0:00:05]} 106. Re3
{[%clk 0:00:16]} 106... Rh8 {[%clk 0:00:03.3]} 107. Ke2 {[%clk 0:00:15]} 107...
Rh2+ {[%clk 0:00:03.1]} 108. Kf3 {[%clk 0:00:13.9]} 108... Rh4 {[%clk
0:00:03.1]} 109. Re4+ {[%clk 0:00:13.6]} 109... Rxe4 {[%clk 0:00:02.8]} 110.
Kxe4 {[%clk 0:00:14.5]} 110... Kxb3 {[%clk 0:00:03.4]} 111. a5 {[%clk 0:00:15]}
1-0

[Event "Late-Titled-Tuesday-Blitz-March-05-2024"]
[Site "Chess.com"]
[Date "2024.03.05"]
[Round "11"]
[White "DeArron_Fox"]
[Black "traack"]
[Result "1-0"]
[WhiteElo "2558"]
[BlackElo "2441"]
[TimeControl "180+1"]
[EndTime "15:57:59 PST"]
[Termination "DeArron_Fox won by resignation"]

1. d4 {[%clk 0:03:00.9]} 1... Nf6 {[%clk 0:02:50.5]} 2. c4 {[%clk 0:02:54.6]}
2... e6 {[%clk 0:02:50.3]} 3. Nf3 {[%clk 0:02:55.1]} 3... d5 {[%clk 0:02:50]} 4.
Nc3 {[%clk 0:02:55.4]} 4... Be7 {[%clk 0:02:49.9]} 5. Bf4 {[%clk 0:02:53.8]}
5... O-O {[%clk 0:02:50.1]} 6. e3 {[%clk 0:02:54.1]} 6... b6 {[%clk 0:02:38.6]}
7. cxd5 {[%clk 0:02:53.6]} 7... exd5 {[%clk 0:02:38.3]} 8. Bd3 {[%clk
0:02:50.6]} 8... Bb7 {[%clk 0:02:36]} 9. O-O {[%clk 0:02:48.7]} 9... Nbd7 {[%clk
0:02:34.5]} 10. Ne5 {[%clk 0:02:36.1]} 10... c5 {[%clk 0:02:31.6]} 11. Qf3
{[%clk 0:02:35.1]} 11... Rc8 {[%clk 0:02:21.1]} 12. Qh3 {[%clk 0:02:32.2]} 12...
Re8 {[%clk 0:02:16.1]} 13. Nxd7 {[%clk 0:02:27.6]} 13... Qxd7 {[%clk 0:02:16]}
14. Bxh7+ {[%clk 0:02:20.6]} 14... Kf8 {[%clk 0:02:07.9]} 15. Bf5 {[%clk
0:02:20.5]} 15... Qc6 {[%clk 0:02:07.1]} 16. Qh8+ {[%clk 0:02:19.3]} 16... Ng8
{[%clk 0:02:06.3]} 17. Bh7 {[%clk 0:02:19.8]} 1-0